fUSD/lending_fUSD_20250826
["ID","MTS","AMOUNT","RATE_DAILY","PERIOD"]
[381520523,1756247456280,-409.9,0.00027397,5]
[381520524,1756247456290,-884.87,0.00027397,5]
[381520525,1756247456299,-400.0,0.00027397,5]
[381520526,1756247456309,-376.41125889,0.00027397,5]
[381520527,1756247456318,-638.94,0.00027397,5]
[381520528,1756247456328,-506.7,0.00027397,5]
[381520529,1756247456341,-400.0,0.00027397,5]
[381520530,1756247456350,-277.93041133,0.00027397,5]
[381520531,1756247456359,-400.0,0.00027397,5]
[381520532,1756247456368,-400.0,0.00027397,5]
[381520533,1756247456379,-400.0,0.00027397,5]
[381520534,1756247456388,-518.43931286,0.00027397,5]
[381520535,1756247456397,-598.69,0.00027397,5]
[381520536,1756247456407,-559.68,0.00027397,5]
[381520537,1756247456416,-967.3,0.00027397,5]
[381520539,1756247456426,-400.0,0.00027397,5]
[381520540,1756247456435,-400.0,0.00027397,5]
[381520541,1756247456444,-400.0,0.00027397,5]
[381520542,1756247456453,-400.0,0.00027397,5]
[381520543,1756247456463,-585.93,0.00027397,5]
[381520544,1756247456472,-763.79,0.00027397,5]
[381520545,1756247456482,-654.41,0.00027397,5]
[381520546,1756247456492,-1042.76,0.00027397,5]
[381520548,1756247456501,-567.92,0.00027397,5]
[381520549,1756247456510,-469.54,0.00027397,5]
[381520550,1756247456519,-400.0,0.00027397,5]
[381520551,1756247456529,-489.8,0.00027397,5]
[381520552,1756247456540,-488.48,0.00027397,5]
[381520553,1756247456551,-539.99,0.00027397,5]
[381520554,1756247456562,-611.59,0.00027397,5]
[381520555,1756247456571,-400.0,0.00027397,5]
[381520556,1756247456583,-778.73,0.00027397,5]
[381520557,1756247456593,-1328.83,0.00027397,5]
[381520558,1756247456602,-562.32,0.00027397,5]
[381520559,1756247456612,-655.97,0.00027397,5]
[381520560,1756247456622,-400.0,0.00027397,5]
[381520561,1756247456631,-1270.1,0.00027397,5]
[381520562,1756247456643,-889.36,0.00027397,5]
[381520563,1756247456652,-856.09,0.00027397,5]
[381520565,1756247456662,-531.1444363,0.00027397,5]
[381520566,1756247456672,-400.0,0.00027397,5]
[381520567,1756247456681,-801.08,0.00027397,5]
[381520568,1756247456691,-400.0,0.00027397,5]
[381520569,1756247456700,-414.82,0.00027397,5]
[381520570,1756247456710,-922.63,0.00027397,5]
[381520571,1756247456720,-443.64,0.00027397,5]
[381520572,1756247456730,-528.82,0.00027397,5]
[381520573,1756247456740,-1164.83,0.00027397,5]
[381520574,1756247456749,-652.66,0.00027397,5]
[381520575,1756247456758,-400.0,0.00027397,5]
[381520576,1756247456767,-809.73,0.00027397,5]
[381520577,1756247456777,-400.0,0.00027397,5]
[381520578,1756247456786,-485.34,0.00027397,5]
[381520580,1756247456796,-1039.17,0.00027397,5]
[381520581,1756247456805,-400.0,0.00027397,5]
[381520582,1756247456814,-505.61,0.00027397,5]
[381520583,1756247456823,-449.28,0.00027397,5]
[381520584,1756247456832,-400.0,0.00027397,5]
[381520585,1756247456842,-1204.01,0.00027397,5]
[381520586,1756247456851,-400.0,0.00027397,5]
[381520587,1756247456860,-1006.73,0.00027397,5]
[381520588,1756247456870,-400.0,0.00027397,5]
[381520589,1756247456880,-400.0,0.00027397,5]
[381520590,1756247456889,-400.0,0.00027397,5]
[381520591,1756247456898,-1000.0,0.00027397,5]
[381520592,1756247456907,-596.8,0.00027397,5]
[381520593,1756247456918,-340.0,0.00027397,5]
[381520594,1756247456927,-400.0,0.00027397,5]
[381520595,1756247456937,-529.54,0.00027397,5]
[381520596,1756247456947,-400.0,0.00027397,5]
[381520597,1756247456957,-495.38509734,0.00027397,5]
[381520598,1756247456968,-495.73,0.00027397,5]
[381520599,1756247456978,-400.0,0.00027397,5]
[381520600,1756247456988,-400.0,0.00027397,5]
[381520601,1756247456998,-935.75,0.00027397,5]
[381520602,1756247457009,-486.26237937,0.00027397,5]
[381520603,1756247457018,-1141.66,0.00027397,5]
[381520604,1756247457030,-400.0,0.00027397,5]
[381520605,1756247457039,-867.64,0.00027397,5]
[381520606,1756247457049,-400.0,0.00027397,5]
[381520607,1756247457059,-151.0,0.00027397,7]
[381520608,1756247457069,-400.0,0.00027397,5]
[381520609,1756247457078,-151.0,0.00027397,7]
[381520610,1756247457088,-400.0,0.00027397,5]
[381520611,1756247457097,-400.0,0.00027397,5]
[381520612,1756247457106,-3007.83,0.00027397,5]
[381520613,1756247457116,-151.0,0.00027397,7]
[381520614,1756247457126,-151.0,0.00027397,7]
[381520615,1756247457136,-629.27,0.00027397,5]
[381520616,1756247457145,-400.0,0.00027397,5]
[381520617,1756247457154,-954.39,0.00027397,5]
[381520618,1756247457163,-941.36,0.00027397,5]
[381520619,1756247457173,-2000.0,0.00027397,30]
[381520620,1756247457182,-400.0,0.00027397,5]
[381520621,1756247457191,-851.14,0.00027397,5]
[381520622,1756247457201,-400.0,0.00027397,5]
[381520623,1756247457210,-552.91,0.00027397,5]
[381520624,1756247457219,-400.0,0.00027397,5]
[381520625,1756247457229,-833.63,0.00027397,5]
[381520626,1756247457239,-400.0,0.00027397,5]
[381520627,1756247457248,-400.0,0.00027397,5]
[381520628,1756247457258,-434.48,0.00027397,5]
[381520629,1756247457267,-839.29,0.00027397,5]
[381520630,1756247457276,-621.29,0.00027397,5]
[381520631,1756247457287,-400.0,0.00027397,5]
[381520632,1756247457296,-400.0,0.00027397,5]
[381520633,1756247457306,-1100.83,0.00027397,5]
[381520634,1756247457315,-400.0,0.00027397,5]
[381520635,1756247457325,-400.0,0.00027397,5]
[381520636,1756247457338,-400.0,0.00027397,5]
[381520637,1756247457347,-1244.25,0.00027397,5]
[381520638,1756247457357,-758.03,0.00027397,5]
[381520639,1756247457367,-927.96,0.00027397,5]
[381520640,1756247457378,-400.0,0.00027397,5]
[381520641,1756247457388,-887.09,0.00027397,5]
[381520642,1756247457398,-1049.87,0.00027397,5]
[381520643,1756247457409,-400.0,0.00027397,5]
[381520644,1756247457420,-400.0,0.00027397,5]
[381520645,1756247457430,-563.34,0.00027397,5]
[381520646,1756247457440,-669.63,0.00027397,5]
[381520647,1756247457449,-553.42,0.00027397,5]
[381520648,1756247457459,-400.0,0.00027397,5]
[381520649,1756247457468,-598.18,0.00027397,5]
[381520650,1756247457478,-913.43,0.00027397,5]
[381520651,1756247457487,-474.63,0.00027397,5]
[381520652,1756247457497,-400.0,0.00027397,5]
[381520653,1756247457506,-1236.0,0.00027397,5]
[381520654,1756247457516,-151.0,0.00027397,7]
[381520655,1756247457526,-900.49,0.00027397,5]
[381520656,1756247457535,-151.0,0.00027397,7]
[381520657,1756247457544,-191.508352,0.00027397,7]
[381520658,1756247457554,-191.508352,0.00027397,7]
[381520659,1756247457563,-191.508352,0.00027397,7]
[381520660,1756247457573,-483.99,0.00027397,5]
[381520661,1756247457582,-191.508352,0.00027397,7]
[381520662,1756247457591,-684.09,0.00027397,5]
[381520663,1756247457601,-477.1,0.00027397,5]
[381520664,1756247457611,-191.508352,0.00027397,7]
[381520665,1756247457620,-1229.03,0.00027397,5]
[381520666,1756247457638,-191.508352,0.00027397,7]
[381520667,1756247457647,-400.0,0.00027397,5]
[381520668,1756247457657,-400.0,0.00027397,5]
[381520669,1756247457673,-400.0,0.00027397,5]
[381520670,1756247457683,-191.508352,0.00027397,7]
[381520671,1756247457692,-531.6,0.00027397,5]
[381520672,1756247457701,-191.508344,0.00027397,7]
[381520673,1756247457711,-515.84,0.00027397,5]
[381520674,1756247457720,-515.19,0.00027397,5]
[381520675,1756247457729,-400.0,0.00027397,5]
[381520676,1756247457739,-905.12,0.00027397,5]
[381520677,1756247457748,-577.27,0.00027397,5]
[381520678,1756247457757,-677.29,0.00027397,5]
[381520679,1756247457766,-1188.39,0.00027397,5]
[381520680,1756247457776,-539.76,0.00027397,5]
[381520681,1756247457786,-1343.31,0.00027397,5]
[381520682,1756247457795,-400.0,0.00027397,5]
[381520683,1756247457805,-619.85,0.00027397,5]
[381520684,1756247457815,-830.13,0.00027397,5]
[381520685,1756247457824,-588.19,0.00027397,5]
[381520686,1756247457834,-919.06,0.00027397,5]
[381520687,1756247457843,-400.0,0.00027397,5]
[381520688,1756247457852,-516.08,0.00027397,5]
[381520689,1756247457862,-472.78,0.00027397,5]
[381520690,1756247457871,-1359.18,0.00027397,5]
[381520691,1756247457880,-1049.17,0.00027397,5]
[381520692,1756247457890,-400.0,0.00027397,5]
[381520693,1756247457901,-400.0,0.00027397,5]
[381520694,1756247457910,-182.86089,0.00027397,7]
[381520695,1756247457920,-182.86089,0.00027397,7]
[381520696,1756247457929,-400.0,0.00027397,5]
[381520697,1756247457939,-400.0,0.00027397,5]
[381520698,1756247457949,-586.16,0.00027397,5]
[381520699,1756247457959,-872.73,0.00027397,5]
[381520700,1756247457968,-473.22,0.00027397,5]
[381520701,1756247457977,-1021.0,0.00027397,5]
[381520702,1756247457987,-524.45,0.00027397,5]
[381520703,1756247457996,-1672.66,0.00027397,5]
[381520704,1756247458006,-400.0,0.00027397,5]
[381520705,1756247458015,-400.0,0.00027397,5]
[381520706,1756247458025,-182.86089,0.00027397,7]
[381520707,1756247458034,-182.86089,0.00027397,7]
[381520708,1756247458043,-941.91,0.00027397,5]
[381520709,1756247458052,-182.86089,0.00027397,7]
[381520710,1756247458062,-182.86089,0.00027397,7]
[381520711,1756247458072,-400.0,0.00027397,5]
[381520712,1756247458081,-182.86089,0.00027397,7]
[381520713,1756247458091,-266.19934214,0.00027397,5]
[381520714,1756247458100,-182.860898,0.00027397,7]
[381520715,1756247458110,-1140.4,0.00027397,5]
[381520716,1756247458119,-855.84,0.00027397,5]
[381520717,1756247458129,-481.78,0.00027397,5]
[381520718,1756247458138,-537.1,0.00027397,5]
[381520719,1756247458148,-528.21,0.00027397,5]
[381520720,1756247458158,-460.25,0.00027397,5]
[381520721,1756247458167,-400.0,0.00027397,5]
[381520722,1756247458177,-740.43,0.00027397,5]
[381520723,1756247458186,-150.0,0.00027397,2]
[381520724,1756247458196,-151.0,0.00027397,7]
[381520725,1756247458206,-151.0,0.00027397,7]
[381520726,1756247458216,-151.0,0.00027397,7]
[381520727,1756247458226,-400.0,0.00027397,5]
[381520728,1756247458236,-400.0,0.00027397,5]
[381520729,1756247458246,-884.98,0.00027397,5]
[381520730,1756247458255,-400.0,0.00027397,5]
[381520731,1756247458265,-886.86,0.00027397,5]
[381520732,1756247458275,-427.69,0.00027397,5]
[381520733,1756247458284,-862.22,0.00027397,5]
[381520734,1756247458293,-400.0,0.00027397,5]
[381520735,1756247458303,-521.35,0.00027397,5]
[381520736,1756247458312,-1226.83,0.00027397,5]
[381520737,1756247458321,-738.68,0.00027397,5]
[381520738,1756247458332,-967.33,0.00027397,5]
[381520739,1756247458346,-400.0,0.00027397,5]
[381520740,1756247458356,-591.03,0.00027397,5]
[381520741,1756247458365,-400.0,0.00027397,5]
[381520742,1756247458375,-172.435104,0.00027397,7]
[381520743,1756247458388,-633.41,0.00027397,5]
[381520744,1756247458397,-400.0,0.00027397,5]
[381520745,1756247458408,-400.0,0.00027397,5]
[381520746,1756247458418,-400.0,0.00027397,5]
[381520747,1756247458427,-400.0,0.00027397,5]
[381520748,1756247458438,-721.77,0.00027397,5]
[381520749,1756247458447,-400.0,0.00027397,5]
[381520750,1756247458456,-925.92,0.00027397,5]
[381520751,1756247458466,-400.0,0.00027397,5]
[381520752,1756247458475,-830.19,0.00027397,5]
[381520753,1756247458484,-289.142064,0.00027397,7]
[381520754,1756247458493,-400.0,0.00027397,5]
[381520755,1756247458502,-289.142064,0.00027397,7]
[381520756,1756247458512,-444.0,0.00027397,5]
[381520757,1756247458521,-289.142064,0.00027397,7]
[381520758,1756247458531,-547.29,0.00027397,5]
[381520759,1756247458541,-289.142064,0.00027397,7]
[381520760,1756247458550,-289.142064,0.00027397,7]
[381520761,1756247458559,-400.0,0.00027397,5]
[381520762,1756247458569,-289.142064,0.00027397,7]
[381520763,1756247458579,-400.0,0.00027397,5]
[381520764,1756247458588,-289.142064,0.00027397,7]
[381520765,1756247458597,-1194.32,0.00027397,5]
[381520766,1756247458607,-289.142064,0.00027397,7]
[381520767,1756247458616,-289.142064,0.00027397,7]
[381520768,1756247458626,-400.0,0.00027397,5]
[381520769,1756247458636,-289.142064,0.00027397,7]
[381520770,1756247458646,-877.71,0.00027397,5]
[381520771,1756247458655,-289.142064,0.00027397,7]
[381520772,1756247458664,-850.14,0.00027397,5]
[381520773,1756247458673,-863.59,0.00027397,5]
[381520774,1756247458682,-400.04,0.00027397,5]
[381520775,1756247458691,-289.142064,0.00027397,7]
[381520776,1756247458701,-627.72,0.00027397,5]
[381520777,1756247458711,-1040.0,0.00027397,5]
[381520778,1756247458720,-400.0,0.00027397,5]
[381520779,1756247458730,-151.0,0.00027397,7]
[381520780,1756247458741,-608.42,0.00027397,5]
[381520781,1756247458751,-151.0,0.00027397,7]
[381520782,1756247458761,-151.0,0.00027397,7]
[381520783,1756247458771,-1107.0,0.00027397,5]
[381520784,1756247458781,-1968.72,0.00027397,5]
[381520785,1756247458791,-717.14,0.00027397,5]
[381520786,1756247458801,-400.0,0.00027397,5]
[381520787,1756247458811,-151.0,0.00027397,7]
[381520788,1756247458822,-151.0,0.00027397,7]
[381520789,1756247458831,-151.0,0.00027397,7]
[381520790,1756247458841,-1053.02,0.00027397,5]
[381520791,1756247458851,-1461.8,0.00027397,5]
[381520792,1756247458860,-400.0,0.00027397,5]
[381520793,1756247458871,-401.36,0.00027397,5]
[381520794,1756247458880,-751.58,0.00027397,5]
[381520795,1756247458892,-400.0,0.00027397,5]
[381520796,1756247458901,-400.0,0.00027397,5]
[381520797,1756247458911,-400.0,0.00027397,5]
[381520798,1756247458920,-400.0,0.00027397,5]
[381520799,1756247458929,-400.0,0.00027397,5]
[381520800,1756247458939,-569.4,0.00027397,5]
[381520801,1756247458948,-818.15,0.00027397,5]
[381520802,1756247458959,-400.0,0.00027397,5]
[381520803,1756247458968,-400.0,0.00027397,5]
[381520804,1756247458978,-433.95,0.00027397,5]
[381520805,1756247458987,-1084.12,0.00027397,5]
[381520806,1756247458996,-458.86,0.00027397,5]
[381520807,1756247459006,-400.0,0.00027397,5]
[381520808,1756247459015,-400.0,0.00027397,5]
[381520809,1756247459026,-754.99,0.00027397,5]
[381520810,1756247459036,-1378.44,0.00027397,5]
[381520811,1756247459046,-400.0,0.00027397,5]
[381520812,1756247459057,-1198.47,0.00027397,5]
[381520813,1756247459067,-422.07,0.00027397,5]
[381520814,1756247459076,-591.12,0.00027397,5]
[381520815,1756247459085,-400.0,0.00027397,5]
[381520816,1756247459094,-919.31,0.00027397,5]
[381520817,1756247459104,-625.11,0.00027397,5]
[381520818,1756247459113,-400.0,0.00027397,5]
[381520819,1756247459123,-400.0,0.00027397,5]
[381520820,1756247459134,-196.81550678,0.00027397,5]
[381520821,1756247459143,-400.0,0.00027397,5]
[381520822,1756247459152,-735.52,0.00027397,5]
[381520823,1756247459162,-400.0,0.00027397,5]
[381520824,1756247459181,-1230.61,0.00027397,5]
[381520825,1756247459191,-400.0,0.00027397,5]
[381520826,1756247459201,-679.76,0.00027397,5]
[381520827,1756247459211,-423.8,0.00027397,5]
[381520828,1756247459221,-400.0,0.00027397,5]
[381520829,1756247459230,-490.0,0.00027397,5]
[381520830,1756247459239,-668.66,0.00027397,5]
[381520831,1756247459249,-839.37,0.00027397,5]
[381520832,1756247459259,-1179.14,0.00027397,5]
[381520833,1756247459268,-400.0,0.00027397,5]
[381520834,1756247459277,-550.03,0.00027397,5]
[381520835,1756247459287,-606.15,0.00027397,5]
[381520836,1756247459298,-262.881824,0.00027397,7]
[381520837,1756247459307,-262.881824,0.00027397,7]
[381520838,1756247459317,-980.27,0.00027397,5]
[381520839,1756247459327,-262.881824,0.00027397,7]
[381520840,1756247459340,-400.0,0.00027397,5]
[381520841,1756247459350,-1052.9,0.00027397,5]
[381520842,1756247459359,-541.64,0.00027397,5]
[381520843,1756247459369,-400.0,0.00027397,5]
[381520844,1756247459378,-262.881824,0.00027397,7]
[381520845,1756247459389,-262.881824,0.00027397,7]
[381520846,1756247459398,-262.881824,0.00027397,7]
[381520847,1756247459407,-571.34,0.00027397,5]
[381520848,1756247459417,-400.0,0.00027397,5]
[381520849,1756247459427,-939.46,0.00027397,5]
[381520850,1756247459436,-262.881824,0.00027397,7]
[381520851,1756247459446,-262.881824,0.00027397,7]
[381520852,1756247459455,-719.22,0.00027397,5]
[381520853,1756247459464,-262.881824,0.00027397,7]
[381520854,1756247459473,-400.0,0.00027397,5]
[381520855,1756247459482,-865.4,0.00027397,5]
[381520856,1756247459492,-400.0,0.00027397,5]
[381520857,1756247459502,-262.881824,0.00027397,7]
[381520858,1756247459511,-262.881824,0.00027397,7]
[381520859,1756247459520,-262.881824,0.00027397,7]
[381520860,1756247459529,-400.0,0.00027397,5]
[381520861,1756247459538,-818.0,0.00027397,5]
[381520862,1756247459547,-656.76,0.00027397,5]
[381520863,1756247459557,-400.0,0.00027397,5]
[381520864,1756247459566,-400.0,0.00027397,5]
[381520865,1756247459575,-400.0,0.00027397,5]
[381520866,1756247459588,-591.37,0.00027397,5]
[381520867,1756247459597,-840.0,0.00027397,5]
[381520868,1756247459607,-400.0,0.00027397,5]
[381520869,1756247459616,-400.0,0.00027397,5]
[381520870,1756247459626,-151.0,0.00027397,7]
[381520871,1756247459637,-400.0,0.00027397,5]
[381520872,1756247459646,-400.0,0.00027397,5]
[381520873,1756247459656,-180.0,0.00027397,5]
[381520874,1756247459665,-151.0,0.00027397,7]
[381520875,1756247459675,-217.824316,0.00027397,7]
[381520876,1756247459685,-400.0,0.00027397,5]
[381520877,1756247459694,-790.3,0.00027397,5]
[381520878,1756247459704,-1150.83,0.00027397,5]
[381520879,1756247459713,-400.0,0.00027397,5]
[381520880,1756247459723,-888.08,0.00027397,5]
[381520881,1756247459732,-400.0,0.00027397,5]
[381520882,1756247459742,-1000.0,0.00027397,5]
[381520883,1756247459752,-400.0,0.00027397,5]
[381520884,1756247459762,-469.3,0.00027397,5]
[381520885,1756247459773,-400.0,0.00027397,5]
[381520886,1756247459782,-847.08,0.00027397,5]
[381520887,1756247459792,-492.78,0.00027397,5]
[381520888,1756247459801,-537.4,0.00027397,5]
[381520889,1756247459979,-400.0,0.00027397,5]
[381520890,1756247459989,-975.87,0.00027397,5]
[381520891,1756247459998,-400.0,0.00027397,5]
[381520892,1756247460008,-1218.12,0.00027397,5]
[381520893,1756247460018,-419.92,0.00027397,5]
[381520894,1756247460028,-526.34,0.00027397,5]
[381520895,1756247460037,-672.13,0.00027397,5]
[381520896,1756247460047,-1372.18,0.00027397,5]
[381520897,1756247460057,-1017.86,0.00027397,5]
[381520898,1756247460067,-716.98,0.00027397,5]
[381520899,1756247460077,-400.0,0.00027397,5]
[381520900,1756247460088,-400.0,0.00027397,5]
[381520901,1756247460097,-400.0,0.00027397,5]
[381520902,1756247460107,-1024.72,0.00027397,5]
[381520903,1756247460117,-497.56,0.00027397,5]
[381520904,1756247460127,-543.39,0.00027397,5]
[381520905,1756247460139,-578.62,0.00027397,5]
[381520906,1756247460149,-400.0,0.00027397,5]
[381520907,1756247460159,-907.27,0.00027397,5]
[381520908,1756247460168,-1054.76,0.00027397,5]
[381520909,1756247460178,-514.74,0.00027397,5]
[381520910,1756247460187,-1176.11,0.00027397,5]
[381520911,1756247460197,-821.69,0.00027397,5]
[381520912,1756247460207,-400.0,0.00027397,5]
[381520913,1756247460217,-400.0,0.00027397,5]
[381520914,1756247460226,-994.3,0.00027397,5]
[381520915,1756247460236,-483.43,0.00027397,5]
[381520916,1756247460246,-1279.85,0.00027397,5]
[381520917,1756247460255,-907.1,0.00027397,5]
[381520918,1756247460265,-493.1,0.00027397,5]
[381520919,1756247460274,-151.0,0.00027397,7]
[381520920,1756247460283,-151.0,0.00027397,7]
[381520921,1756247460293,-400.0,0.00027397,5]
[381520922,1756247460303,-842.09,0.00027397,5]
[381520923,1756247460312,-495.63,0.00027397,5]
[381520924,1756247460322,-562.03,0.00027397,5]
[381520925,1756247460333,-151.0,0.00027397,7]
[381520926,1756247460343,-151.0,0.00027397,7]
[381520927,1756247460353,-151.0,0.00027397,7]
[381520928,1756247460363,-151.0,0.00027397,7]
[381520929,1756247460372,-400.0,0.00027397,5]
[381520930,1756247460385,-400.0,0.00027397,5]
[381520931,1756247460394,-547.13,0.00027397,5]
[381520932,1756247460404,-182.45615,0.00027397,7]
[381520933,1756247460414,-648.7,0.00027397,5]
[381520934,1756247460424,-490.0,0.00027397,5]
[381520935,1756247460434,-400.0,0.00027397,5]
[381520936,1756247460443,-400.0,0.00027397,5]
[381520937,1756247460453,-711.41,0.00027397,5]
[381520938,1756247460462,-503.59,0.00027397,5]
[381520939,1756247460471,-1012.41,0.00027397,5]
[381520940,1756247460480,-400.0,0.00027397,5]
[381520941,1756247460490,-400.0,0.00027397,5]
[381520942,1756247460500,-743.91,0.00027397,5]
[381520943,1756247460510,-400.0,0.00027397,5]
[381520944,1756247460520,-400.0,0.00027397,5]
[381520945,1756247460530,-1063.15,0.00027397,5]
[381520946,1756247460539,-151.0,0.00027397,7]
[381520947,1756247460550,-151.0,0.00027397,7]
[381520948,1756247460559,-400.0,0.00027397,5]
[381520949,1756247460569,-400.0,0.00027397,5]
[381520950,1756247460578,-151.0,0.00027397,7]
[381520951,1756247460587,-843.41,0.00027397,5]
[381520952,1756247460597,-1000.0,0.00027397,5]
[381520953,1756247460608,-1067.87,0.00027397,5]
[381520954,1756247460617,-400.0,0.00027397,5]
[381520955,1756247460628,-533.69,0.00027397,5]
[381520956,1756247460640,-950.08,0.00027397,5]
[381520957,1756247460649,-400.0,0.00027397,5]
[381520958,1756247460658,-400.0,0.00027397,5]
[381520959,1756247460669,-404.95,0.00027397,5]
[381520960,1756247460678,-983.86,0.00027397,5]
[381520961,1756247460687,-400.0,0.00027397,5]
[381520962,1756247460697,-526.76,0.00027397,5]
[381520963,1756247460706,-400.0,0.00027397,5]
[381520964,1756247460716,-400.0,0.00027397,5]
[381520965,1756247460725,-791.8,0.00027397,5]
[381520966,1756247460735,-400.0,0.00027397,5]
[381520967,1756247460744,-400.0,0.00027397,5]
[381520968,1756247460754,-718.05,0.00027397,5]
[381520969,1756247460763,-644.45,0.00027397,5]
[381520970,1756247460772,-329.085565,0.00027397,7]
[381520971,1756247460782,-329.085565,0.00027397,7]
[381520972,1756247460791,-329.085565,0.00027397,7]
[381520973,1756247460800,-513.30250618,0.00027397,5]
[381520974,1756247460809,-673.06,0.00027397,5]
[381520975,1756247460819,-329.085565,0.00027397,7]
[381520976,1756247460828,-329.085565,0.00027397,7]
[381520977,1756247460838,-329.085565,0.00027397,7]
[381520978,1756247460847,-810.36,0.00027397,5]
[381520979,1756247460856,-400.0,0.00027397,5]
[381520980,1756247460865,-571.52,0.00027397,5]
[381520981,1756247460875,-400.0,0.00027397,5]
[381520982,1756247460885,-400.0,0.00027397,5]
[381520983,1756247460894,-329.085565,0.00027397,7]
[381520984,1756247460903,-546.42,0.00027397,5]
[381520985,1756247460913,-1094.58,0.00027397,5]
[381520986,1756247460922,-329.085565,0.00027397,7]
[381520987,1756247460931,-329.085565,0.00027397,7]
[381520988,1756247460940,-294.459078,0.00027397,7]
[381520989,1756247460949,-400.0,0.00027397,5]
[381520990,1756247460959,-329.085565,0.00027397,7]
[381520991,1756247460968,-329.085565,0.00027397,7]
[381520992,1756247460978,-329.085562,0.00027397,7]
[381520993,1756247460987,-294.459078,0.00027397,7]
[381520994,1756247460998,-881.38,0.00027397,5]
[381520995,1756247461007,-546.22,0.00027397,5]
[381520996,1756247461017,-400.0,0.00027397,5]
[381520997,1756247461026,-294.459078,0.00027397,7]
[381520998,1756247461036,-400.0,0.00027397,5]
[381520999,1756247461045,-559.21,0.00027397,5]
[381521000,1756247461055,-294.459086,0.00027397,7]
[381521001,1756247461064,-400.0,0.00027397,5]
[381521002,1756247461073,-898.14,0.00027397,5]
[381521003,1756247461083,-737.5,0.00027397,5]
[381521004,1756247461096,-1892.48,0.00027397,5]
[381521005,1756247461106,-1492.28,0.00027397,5]
[381521006,1756247461116,-1159.34,0.00027397,5]
[381521007,1756247461127,-400.0,0.00027397,5]
[381521008,1756247461138,-509.03,0.00027397,5]
[381521009,1756247461148,-967.5,0.00027397,5]
[381521010,1756247461158,-476.0,0.00027397,5]
[381521011,1756247461167,-151.0,0.00027397,7]
[381521012,1756247461177,-151.0,0.00027397,7]
[381521013,1756247461187,-937.14,0.00027397,5]
[381521014,1756247461197,-151.0,0.00027397,7]
[381521015,1756247461207,-400.0,0.00027397,5]
[381521016,1756247461217,-1299.22,0.00027397,5]
[381521017,1756247461228,-1095.83,0.00027397,5]
[381521018,1756247461237,-1180.68,0.00027397,5]
[381521019,1756247461247,-3372.03,0.00027397,5]
[381521020,1756247461257,-400.0,0.00027397,5]
[381521021,1756247461267,-400.0,0.00027397,5]
[381521022,1756247461276,-521.78,0.00027397,5]
[381521023,1756247461286,-814.87,0.00027397,5]
[381521024,1756247461296,-510.48,0.00027397,5]
[381521025,1756247461306,-674.43,0.00027397,5]
[381521026,1756247461316,-517.35,0.00027397,5]